bitfinex-derivatives/quotes_BNBF0:USTF0_20250401
["timestamp","ask_amount","ask_price","bid_price","bid_amount"]
[1743468873442,0.30322056,606.49,605.18,0.33048018]
[1743468873744,0.30322056,606.48,605.18,0.33048018]
[1743468873942,0.30322056,606.51,605.18,0.33048018]
[1743468874150,0.30322056,606.5,605.18,0.33048018]
[1743468874341,0.30322056,606.51,605.18,0.33048018]
[1743468874539,0.30322056,606.5,605.18,0.33048018]
[1743468874845,0.30322056,606.49,605.18,0.33048018]
[1743468875050,0.30322056,606.48,605.18,0.33048018]
[1743468875347,0.30322056,606.47,605.18,0.33048018]
[1743468875543,0.30322056,606.51,605.18,0.33048018]
[1743468875751,0.30322056,606.5,605.18,0.33048018]
[1743468876056,0.30322056,606.49,605.18,0.33048018]
[1743468876246,0.30324392,606.48,605.18,0.33048018]
[1743468876547,0.30324392,606.47,605.18,0.33048018]
[1743468876746,0.30324392,606.46,605.18,0.33048018]
[1743468876953,0.30324392,606.49,605.18,0.33048018]
[1743468877140,0.28727923,606.5,605.18,0.33048018]
[1743468877141,0.30323953,606.48,605.18,0.33048018]
[1743468877346,0.30323953,606.49,605.18,0.33048018]
[1743468877649,0.28727923,606.5,605.18,0.33048018]
[1743468877845,0.30323634,606.49,605.18,0.33048018]
[1743468878448,0.28727923,606.5,605.18,0.33048018]
[1743468878850,0.32971199,606.59,605.18,0.33048018]
[1743468879049,0.28727093,606.49,605.18,0.33048018]
[1743468879445,0.32971199,606.59,605.18,0.33048018]
[1743468879643,0.28727685,606.48,605.18,0.33048018]
[1743468880042,0.32971199,606.59,605.18,0.33048018]
[1743468880252,0.28727211,606.47,605.18,0.33048018]
[1743468880645,0.32971199,606.59,605.18,0.33048018]
[1743468880851,0.28727093,606.46,605.18,0.33048018]
[1743468881351,0.32971199,606.59,605.18,0.33048018]
[1743468881554,0.28727093,606.45,605.18,0.33048018]
[1743468881852,0.32971199,606.59,605.18,0.33048018]
[1743468882050,0.28726263,606.44,605.18,0.33048018]
[1743468882451,0.32971199,606.59,605.18,0.33048018]
[1743468882652,0.28725907,606.43,605.18,0.33048018]
[1743468884855,0.32971199,606.59,605.18,0.33048018]
[1743468885052,0.3032516,606.58,605.18,0.33048018]
[1743468885253,0.28728634,606.42,605.18,0.33048018]
[1743468885653,0.32971199,606.59,605.18,0.33048018]
[1743468885849,0.28728516,606.41,605.18,0.33048018]
[1743468886250,0.32971199,606.59,605.18,0.33048018]
[1743468886450,0.28728516,606.4,605.18,0.33048018]
[1743468886952,0.32971199,606.59,605.18,0.33048018]
[1743468887152,0.28728634,606.39,605.18,0.33048018]
[1743468887558,0.32971199,606.59,605.18,0.33048018]
[1743468887751,0.30324951,606.58,605.18,0.33048018]
[1743468887955,0.32972286,606.57,605.18,0.33048018]
[1743468888156,0.30324951,606.56,605.18,0.33048018]
[1743468888354,0.30324912,606.55,605.18,0.33048018]
[1743468891258,0.2872982,606.54,605.18,0.33048018]
[1743468891452,0.30324912,606.53,605.18,0.33048018]
[1743468891853,0.2872982,606.54,605.18,0.33048018]
[1743468893256,0.30324741,606.53,605.18,0.33048018]
[1743468893561,0.2872982,606.54,605.18,0.33048018]
[1743468893862,0.3297283,606.56,605.18,0.33048018]
[1743468894059,0.30323313,606.55,605.18,0.33048018]
[1743468894256,0.28728871,606.53,605.18,0.33048018]
[1743468894458,0.30323313,606.52,605.18,0.33048018]
[1743468898261,1.359,606.51,605.18,0.33048018]
[1743468898462,0.30323313,606.5,605.18,0.33048018]
[1743468900264,0.28725196,606.49,605.18,0.33048018]
[1743468900465,0.30323313,606.48,605.18,0.33048018]
[1743468902960,0.30323313,606.47,605.18,0.33048018]
[1743468903266,0.28726144,606.47,605.18,0.33048018]
[1743468905768,1.359,606.51,605.18,0.33048018]
[1743468906163,0.28721876,606.46,605.18,0.33048018]
[1743468911869,1.359,606.51,605.18,0.33048018]
[1743468912071,0.287265,606.45,605.18,0.33048018]
[1743468920774,2.52329891,608.03,605.18,0.33048018]
[1743468920974,0.32900689,607.89,605.18,0.33048018]
[1743468921178,0.28702333,606.44,605.18,0.33048018]
[1743468921377,0.32900689,607.89,605.18,0.33048018]
[1743468921573,0.30302747,607.88,605.18,0.33048018]
[1743468921778,0.28704227,606.43,605.18,0.33048018]
[1743468921974,0.32908268,607.75,605.18,0.33048018]
[1743468922174,0.28705766,606.42,605.18,0.33048018]
[1743468922680,1.36,606.41,605.18,0.33048018]
[1743468922877,1.64705884,606.41,605.18,0.33048018]
[1743468923881,1.36,606.41,605.18,0.33048018]
[1743468924077,0.28727093,606.4,605.18,0.33048018]
[1743468932889,1.36,606.41,605.18,0.33048018]
[1743468933286,0.28721284,606.39,605.18,0.33048018]
[1743468935892,1.36,606.41,605.18,0.33048018]
[1743468936392,0.28723062,606.38,605.18,0.33048018]
[1743468938796,1.36,606.41,605.18,0.33048018]
[1743468939292,0.28720099,606.4,605.18,0.33048018]
[1743468941898,0.32908268,607.75,605.18,0.33048018]
[1743468942099,0.28719269,606.39,605.18,0.33048018]
[1743468942603,2.52329891,607.74,605.18,0.33048018]
[1743468942804,0.28703043,606.38,605.18,0.33048018]
[1743468943007,0.32915308,607.62,605.18,0.33048018]
[1743468943203,0.30302932,607.61,605.18,0.33048018]
[1743468943399,0.28704464,606.37,605.18,0.33048018]
[1743468943601,2.52329891,607.42,605.18,0.33048018]
[1743468943808,0.3292723,607.4,605.18,0.33048018]
[1743468944005,0.28705056,606.36,605.18,0.33048018]
[1743468944204,0.3292723,607.4,605.18,0.33048018]
[1743468944401,0.30302894,607.39,605.18,0.33048018]
[1743468944703,0.28705411,606.35,605.18,0.33048018]
[1743468944909,2.85258748,607.37,605.18,0.33048018]
[1743468945110,0.28705648,606.34,605.18,0.33048018]
[1743468945402,0.32929941,607.35,605.18,0.33048018]
[1743468945607,0.30304645,607.34,605.18,0.33048018]
[1743468945808,0.28706358,606.33,605.18,0.33048018]
[1743468946009,0.32929941,607.35,605.18,0.33048018]
[1743468946209,0.30305807,607.34,605.18,0.33048018]
[1743468946409,0.30305807,607.33,605.18,0.33048018]
[1743468946604,0.3293211,607.31,605.18,0.33048018]
[1743468946806,0.30305807,607.3,605.18,0.33048018]
[1743468947011,0.32933737,607.28,605.18,0.33048018]
[1743468947210,0.30305807,607.27,605.18,0.33048018]
[1743468947404,0.32935364,607.25,605.18,0.33048018]
[1743468947608,0.30305807,607.24,605.18,0.33048018]
[1743468947812,0.32936991,607.22,605.18,0.33048018]
[1743468948006,0.30305807,607.21,605.18,0.33048018]
[1743468948209,0.32938618,607.19,605.18,0.33048018]
[1743468948411,2.52329891,607.12,605.18,0.33048018]
[1743468948604,0.32943501,607.1,605.18,0.33048018]
[1743468948809,0.30305807,607.09,605.18,0.33048018]
[1743468949010,0.32945129,607.07,605.18,0.33048018]
[1743468949210,0.30305807,607.06,605.18,0.33048018]
[1743468949407,0.32946758,607.04,605.18,0.33048018]
[1743468949606,0.30305807,607.03,605.18,0.33048018]
[1743468949809,0.32947843,607.02,605.18,0.33048018]
[1743468950014,0.30305807,607.01,605.18,0.33048018]
[1743468951314,0.28709555,607.0,605.18,0.33048018]
[1743468951515,0.30305807,606.99,605.18,0.33048018]
[1743468952713,0.30307979,606.98,605.18,0.33048018]
[1743468952911,0.63258536,606.97,605.18,0.33048018]
[1743468953214,0.63259079,606.96,605.18,0.33048018]
[1743468953413,0.63259622,606.95,605.18,0.33048018]
[1743468953614,0.63260165,606.94,605.18,0.33048018]
[1743468953817,0.63260708,606.93,605.18,0.33048018]
[1743468954115,0.32953272,606.92,605.18,0.33048018]
[1743468954312,0.30311386,606.91,605.18,0.33048018]
[1743468954512,0.32954358,606.9,605.18,0.33048018]
[1743468954712,0.30311386,606.89,605.18,0.33048018]
[1743468954909,0.32955444,606.88,605.18,0.33048018]
[1743468955317,0.30315785,606.87,605.18,0.33048018]
[1743468955617,0.3295653,606.86,605.18,0.33048018]
[1743468955816,0.30315785,606.85,605.18,0.33048018]
[1743468956010,0.32957616,606.84,605.18,0.33048018]
[1743468956316,0.30315785,606.83,605.18,0.33048018]
[1743468956511,0.32958702,606.82,605.18,0.33048018]
[1743468956712,0.30315785,606.81,605.18,0.33048018]
[1743468956911,0.32959789,606.8,605.18,0.33048018]
[1743468957112,0.30315785,606.79,605.18,0.33048018]
[1743468957315,0.32960875,606.78,605.18,0.33048018]
[1743468957515,0.30315785,606.77,605.18,0.33048018]
[1743468957716,0.32961961,606.76,605.18,0.33048018]
[1743468957916,0.30315785,606.75,605.18,0.33048018]
[1743468958118,0.32963048,606.74,605.18,0.33048018]
[1743468958315,0.30315785,606.73,605.18,0.33048018]
[1743468958514,0.32964135,606.72,605.18,0.33048018]
[1743468958708,0.30315785,606.71,605.18,0.33048018]
[1743468958912,0.32965221,606.7,605.18,0.33048018]
[1743468959118,0.30315785,606.69,605.18,0.33048018]
[1743468960309,0.28721047,606.68,605.18,0.33048018]
[1743468960515,0.30315785,606.67,605.18,0.33048018]
[1743468960920,0.28721047,606.68,605.18,0.33048018]
[1743468961811,0.32965221,606.7,605.18,0.33048018]
[1743468962213,0.30313782,606.69,605.18,0.33048018]
[1743468962624,0.32965221,606.7,605.18,0.33048018]
[1743468963318,0.30314013,606.69,605.18,0.33048018]
[1743468963719,0.32965221,606.7,605.18,0.33048018]
[1743468968922,2.52329891,607.36,604.74,2.51454257]
[1743468969124,0.30310046,607.35,604.74,2.51454257]
[1743468969323,0.30310046,607.34,604.76,2.51454257]
[1743468969622,0.30310046,607.33,604.76,2.51454257]
[1743468969823,0.30310046,607.32,604.76,2.51454257]
[1743468970023,3.68329891,607.38,604.76,2.51454257]
[1743468970024,0.30310046,607.31,604.76,2.51454257]
[1743468970319,0.30310046,607.3,604.76,2.51454257]
[1743468970537,0.30310046,607.29,604.76,2.51454257]
[1743468970720,0.30310046,607.28,604.76,2.51454257]
[1743468970925,0.30310046,607.27,604.74,2.51454257]
[1743468971126,0.30310046,607.26,604.74,2.51454257]
[1743468971322,0.30310046,607.25,604.74,2.51454257]
[1743468971527,0.30310046,607.24,604.74,2.51454257]
[1743468971829,0.30310046,607.23,604.74,2.51454257]
[1743468972127,0.30310046,607.22,604.74,2.51454257]
[1743468972327,0.30310046,607.37,604.74,2.51454257]
[1743468972520,0.30310046,607.36,604.74,2.51454257]
[1743468972724,1.16,607.38,604.72,1.83180738]
[1743468972725,0.30310046,607.35,604.84,2.51454257]
[1743468972925,0.30310046,607.34,604.84,2.51454257]
[1743468973226,0.30310046,607.33,604.84,2.51454257]
[1743468973527,0.30310046,607.32,604.84,2.51454257]
[1743468973728,0.30310046,607.31,604.84,2.51454257]
[1743468973925,0.30310046,607.3,604.84,2.51454257]
[1743468974125,0.30310046,607.29,604.84,2.51454257]
[1743468974423,0.30310046,607.28,604.84,2.51454257]
[1743468974628,0.30310046,607.27,604.76,4.34634995]
[1743468974824,0.30310046,607.26,604.76,4.34634995]
[1743468975021,0.30310046,607.25,604.76,4.34634995]
[1743468975222,0.30310046,607.24,604.76,4.34634995]
[1743468975427,0.30310046,607.23,604.76,4.34634995]
[1743468975627,0.30310046,607.22,604.76,4.34634995]
[1743468975827,0.30310046,607.21,604.76,4.34634995]
[1743468976027,0.30310046,607.2,604.77,2.68701299]
[1743468976222,2.52329891,607.15,604.88,2.51454257]
[1743468976425,0.30310046,607.14,604.88,2.51454257]
[1743468976625,0.30310046,607.13,604.88,2.51454257]
[1743468976822,0.30310046,607.12,604.88,2.51454257]
[1743468977027,0.30310046,607.11,604.88,2.51454257]
[1743468977327,0.30310046,607.1,604.88,2.51454257]
[1743468977528,0.30310046,607.09,604.88,2.51454257]
[1743468977726,0.30310046,607.14,604.88,2.51454257]
[1743468977931,2.52329891,607.11,604.86,2.51454257]
[1743468978233,0.30310046,607.1,604.86,2.51454257]
[1743468978832,0.30310046,607.09,604.86,2.51454257]
[1743468979132,0.30310046,607.08,604.86,2.51454257]
[1743468979334,0.30310046,607.07,604.86,2.51454257]
[1743468979627,0.30310046,607.07,604.82,1.83180738]
[1743468979628,0.30310046,607.06,604.9,2.51454257]
[1743468979831,0.30310046,607.05,604.9,2.51454257]
[1743468980031,0.30310046,607.04,604.9,2.51454257]
[1743468980332,0.30310046,607.03,604.9,2.51454257]
[1743468980529,0.30310046,607.02,604.9,2.51454257]
[1743468980832,2.52329891,607.01,604.99,2.51454257]
[1743468981028,0.30310046,607.0,604.99,2.51454257]
[1743468982440,0.30310046,607.0,604.98,2.51454257]
[1743468983544,0.28710029,607.01,604.98,2.51454257]
[1743468983941,2.52329891,607.15,604.98,2.51454257]
[1743468984142,0.28700558,607.0,604.88,1.83180738]
[1743468984334,0.28700558,607.0,604.87,2.68701299]
[1743468984538,2.52329891,607.43,604.83,4.51882037]
[1743468985137,0.58995021,607.37,604.83,4.51882037]
[1743468985342,0.30294227,607.36,604.83,4.51882037]
[1743468986749,0.30294227,607.36,604.84,1.83180738]
[1743468986941,0.30294227,607.36,604.37,4.51882037]
[1743468988136,0.30294227,607.36,604.37,2.68701299]
[1743468988744,0.30296503,607.35,604.37,2.68701299]
[1743468988936,0.30296503,607.36,604.37,2.68701299]
[1743468989138,0.30296503,607.35,604.37,2.68701299]
[1743468989336,0.30296503,607.36,604.3,4.51882037]
[1743468989540,0.30296503,607.35,604.3,4.51882037]
[1743468989735,0.30296503,607.36,604.3,4.51882037]
[1743468990138,0.30296503,608.23,604.3,4.51882037]
[1743468990336,0.28709318,607.35,604.3,4.51882037]
[1743468990538,0.30296503,607.34,604.3,4.51882037]
[1743468990742,1.042,607.34,604.3,4.51882037]
[1743468991041,0.30296503,607.33,604.3,4.51882037]
[1743468991635,0.30296503,607.33,604.44,2.51454257]
[1743468992038,0.28709673,607.32,604.44,2.51454257]
[1743468992343,0.30296503,607.31,604.44,2.51454257]
[1743468992942,0.30296503,607.33,604.44,2.51454257]
[1743468993144,0.30296503,607.32,604.78,2.51454257]
[1743468993337,0.28708016,607.3,604.78,2.51454257]
[1743468993540,0.30297859,607.29,604.78,2.51454257]
[1743468995341,0.30297859,607.29,604.83,2.51454257]
[1743468996146,0.28702215,607.28,604.83,2.51454257]
[1743468996342,0.32934279,607.27,604.95,0.33060583]
[1743468996548,0.30297859,607.26,604.95,0.33060583]
[1743468996850,0.32935364,607.25,604.95,0.33060583]
[1743468997152,0.30297859,607.24,604.95,0.33060583]
[1743468998143,0.32936449,607.23,604.95,0.33060583]
[1743468998449,0.30297859,607.22,604.95,0.33060583]
[1743468998851,0.32937533,607.21,604.95,0.33060583]
[1743468999045,0.30297859,607.2,604.95,0.33060583]
[1743468999246,0.32938618,607.19,604.95,0.33060583]
[1743468999549,0.30297859,607.18,604.95,0.33060583]
[1743468999748,0.63238275,607.17,604.95,0.33060583]
[1743468999951,0.30298572,607.16,604.95,0.33060583]
[1743469000350,0.32940788,607.15,604.95,0.33060583]
[1743469000549,0.30298572,607.14,604.95,0.33060583]
[1743469000750,0.63239903,607.14,604.95,0.33060583]
[1743469000950,0.30298572,607.13,604.95,0.33060583]
[1743469002152,0.28706476,607.12,604.95,0.33060583]
[1743469002550,0.30300781,607.11,604.95,0.33060583]
[1743469005153,0.30300781,607.1,604.95,0.33060583]
[1743469005353,0.30300781,607.09,604.95,0.33060583]
[1743469007755,0.30302305,607.08,604.95,0.33060583]
[1743469008352,0.28708371,607.07,604.95,0.33060583]
[1743469008556,0.30302305,607.06,604.95,0.33060583]
[1743469010958,0.30302305,607.05,604.95,0.33060583]
[1743469011162,0.30302305,607.04,605.03,2.51454257]
[1743469011363,0.329473,607.03,605.13,0.33050749]
[1743469011563,0.30302305,607.02,605.13,0.33050749]
[1743469012267,0.329473,607.03,605.13,0.33050749]
[1743469012564,0.30305423,607.02,605.13,0.33050749]
[1743469015474,0.30303527,607.01,605.13,0.33050749]
[1743469015674,0.30303527,607.02,605.13,0.33050749]
[1743469015869,0.30303527,607.01,605.13,0.33050749]
[1743469016065,0.30303527,607.0,605.13,0.33050749]
[1743469016267,0.30303527,607.02,605.13,0.33050749]
[1743469016466,0.30303527,607.01,605.13,0.33050749]
[1743469016662,0.30303527,607.0,605.13,0.33050749]
[1743469016863,0.30303527,606.99,605.13,0.33050749]
[1743469017166,0.329473,607.03,605.13,0.33050749]
[1743469017167,0.30303485,606.98,605.13,0.33050749]
[1743469017364,0.30303485,607.02,605.13,0.33050749]
[1743469017569,0.30303485,607.01,605.13,0.33050749]
[1743469017872,0.30303485,607.0,605.13,0.33050749]
[1743469018068,0.30303485,606.99,605.13,0.33050749]
[1743469018272,0.30303485,606.98,605.13,0.33050749]
[1743469018469,0.30303485,606.97,605.13,0.33050749]
[1743469018669,0.30303485,607.02,605.13,0.33050749]
[1743469018973,0.30303485,607.01,605.13,0.33050749]
[1743469019165,0.30303485,607.02,605.13,0.33050749]
[1743469019370,0.30303485,607.01,605.13,0.33050749]
[1743469019566,0.30303485,607.02,605.13,0.33050749]
[1743469020169,0.28707779,607.01,605.13,0.33050749]
[1743469020365,0.30303485,607.0,605.13,0.33050749]
[1743469023065,0.30303485,606.99,605.13,0.33050749]
[1743469023272,0.28706595,606.99,605.13,0.33050749]
[1743469023467,0.30303485,606.98,605.13,0.33050749]
[1743469024874,0.28706595,606.99,605.13,0.33050749]
[1743469025276,0.30302087,606.98,605.13,0.33050749]
[1743469025974,0.30302087,606.97,605.13,0.33050749]
[1743469026269,0.28706713,606.97,605.13,0.33050749]
[1743469027567,1.441,606.96,605.13,0.33050749]
[1743469032273,0.28707187,606.95,605.13,0.33050749]
[1743469034680,0.30300744,606.94,605.13,0.33050749]
[1743469035180,0.59008404,606.93,605.13,0.33050749]
[1743469035478,0.2870766,606.93,605.13,0.33050749]
[1743469037883,1.441,606.96,605.13,0.33050749]
[1743469038080,0.28701386,606.92,605.13,0.33050749]
[1743469040382,0.28701386,606.92,605.29,2.51454257]
[1743469041581,0.28701386,606.92,605.31,0.33040921]
[1743469043688,0.28701386,606.92,605.33,2.51454257]
[1743469043883,1.441,606.96,605.33,2.51454257]
[1743469044083,1.441,606.96,605.35,0.33038737]
[1743469044284,0.28695824,606.91,605.35,0.33038737]
[1743469046894,2.52329891,607.85,605.35,0.33038737]
[1743469047095,0.28683407,606.9,605.35,0.33038737]
[1743469047489,0.32903936,607.83,605.35,0.33038737]
[1743469047695,0.28685417,606.89,605.35,0.33038737]
[1743469047989,1.46703936,607.83,605.35,0.33038737]
[1743469048194,0.30282445,607.82,605.35,0.33038737]
[1743469048495,0.28686599,606.88,605.35,0.33038737]
[1743469048691,0.32905561,607.8,605.35,0.33038737]
[1743469049097,0.30283105,607.79,605.35,0.33038737]
[1743469049296,0.32907185,607.77,605.35,0.33038737]
[1743469049497,0.30283105,607.76,605.35,0.33038737]
[1743469049698,0.32908809,607.74,605.35,0.33038737]
[1743469049992,0.30283105,607.73,605.35,0.33038737]
[1743469050296,0.32910434,607.71,605.35,0.33038737]
[1743469050699,0.30282905,607.7,605.35,0.33038737]
[1743469050997,0.32912058,607.68,605.35,0.33038737]
[1743469051198,0.30282905,607.67,605.35,0.33038737]
[1743469051399,0.32913142,607.66,605.35,0.33038737]
[1743469051698,0.30282905,607.65,605.35,0.33038737]
[1743469051899,0.32914225,607.64,605.35,0.33038737]
[1743469052197,0.30282905,607.63,605.35,0.33038737]
[1743469053101,0.61606401,607.62,605.35,0.33038737]
[1743469053294,0.63198755,607.61,605.35,0.33038737]
[1743469053494,0.63199297,607.6,605.35,0.33038737]
[1743469053699,0.63201587,607.59,605.35,0.33038737]
[1743469053893,0.63202128,607.58,605.35,0.33038737]
[1743469054092,0.6320267,607.57,605.35,0.33038737]
[1743469054295,0.63203212,607.56,605.35,0.33038737]
[1743469054497,0.63203754,607.55,605.35,0.33038737]
[1743469054697,0.63204296,607.54,605.35,0.33038737]
[1743469054899,0.63204838,607.53,605.35,0.33038737]
[1743469055094,0.63205379,607.52,605.35,0.33038737]
[1743469055396,0.30284777,607.51,605.35,0.33038737]
[1743469055795,0.3292181,607.5,605.35,0.33038737]
[1743469055993,0.30284777,607.49,605.35,0.33038737]
[1743469058602,0.3292181,607.5,605.35,0.33038737]
[1743469058603,0.30281958,607.48,605.35,0.33038737]
[1743469058899,0.3292181,607.5,605.35,0.33038737]
[1743469058900,0.30281958,607.47,605.35,0.33038737]
[1743469059102,0.30281958,607.49,605.35,0.33038737]
[1743469059298,0.30281958,607.48,605.35,0.33038737]
[1743469059501,0.28692275,607.46,605.35,0.33038737]
[1743469059701,0.30281958,607.45,605.35,0.33038737]
[1743469061705,0.30280534,607.44,605.35,0.33038737]
[1743469061907,0.30280534,607.45,605.35,0.33038737]
[1743469062107,0.28692748,607.43,605.35,0.33038737]
[1743469062305,0.30280534,607.42,605.35,0.33038737]
[1743469063401,0.30280354,607.41,605.35,0.33038737]
[1743469063601,0.30280354,607.4,605.35,0.33038737]
[1743469063802,0.30280354,607.39,605.35,0.33038737]
[1743469064005,0.30280354,607.42,605.35,0.33038737]
[1743469064210,0.30280354,607.41,605.35,0.33038737]
[1743469064401,0.30280354,607.4,605.35,0.33038737]
[1743469064606,0.30280354,607.39,605.35,0.33038737]
[1743469064802,0.3292181,607.5,605.35,0.33038737]
[1743469064803,0.30280354,607.42,605.35,0.33038737]
[1743469065004,0.30280354,607.41,605.35,0.33038737]
[1743469065204,0.28690501,607.38,605.35,0.33038737]
[1743469065401,0.30280354,607.37,605.35,0.33038737]
[1743469066007,0.28690501,607.38,605.35,0.33038737]
[1743469066904,1.153,607.37,605.35,0.33038737]
[1743469068510,0.2869263,607.36,605.35,0.33038737]
[1743469070911,1.153,607.37,605.35,0.33038737]
[1743469071309,0.28692157,607.36,605.35,0.33038737]
[1743469077013,1.153,607.37,605.35,0.33038737]
[1743469077414,0.28691093,607.35,605.35,0.33038737]
[1743469077815,0.30279578,607.34,605.35,0.33038737]
[1743469078313,0.28691093,607.35,605.35,0.33038737]
[1743469079914,1.153,607.37,605.35,0.33038737]
[1743469080319,0.28693222,607.36,605.35,0.33038737]
[1743469082823,1.153,607.37,605.35,0.33038737]
[1743469083227,0.28694168,607.35,605.35,0.33038737]
[1743469085923,1.153,607.37,605.35,0.33038737]
[1743469086330,0.28692275,607.34,605.35,0.33038737]
[1743469089136,1.153,607.37,605.35,0.33038737]
[1743469089432,0.28693103,607.33,605.35,0.33038737]
[1743469092033,1.153,607.37,605.35,0.33038737]
[1743469092233,0.28691566,607.32,605.35,0.33038737]
[1743469095035,1.153,607.37,605.35,0.33038737]
[1743469095240,0.28689319,607.31,605.35,0.33038737]
[1743469096740,0.28689319,607.31,605.49,2.51454257]
[1743469096938,0.28689319,607.31,605.51,0.33030007]
[1743469098035,1.153,607.37,605.51,0.33030007]
[1743469098343,1.153,607.37,605.52,2.51454257]
[1743469098539,0.28685771,607.36,605.54,0.33028371]
[1743469100545,0.28685771,607.36,605.52,2.51454257]
[1743469100943,1.153,607.37,605.52,2.51454257]
[1743469101345,0.28684707,607.35,605.52,2.51454257]
[1743469101539,0.28684707,607.35,605.34,1.83180738]
[1743469101942,0.28684707,607.35,605.33,2.68701299]
[1743469103447,0.28684707,607.35,605.35,2.51454257]
[1743469104046,2.52329891,608.19,605.35,2.51454257]
[1743469104247,0.28677025,607.34,605.35,2.51454257]
[1743469104548,2.52329891,608.19,605.35,2.51454257]
[1743469104749,0.30276223,608.18,605.35,2.51454257]
[1743469104950,0.28677143,607.33,605.35,2.51454257]
[1743469105143,2.52329891,608.19,605.35,2.51454257]
[1743469105342,0.28677261,607.32,605.35,2.51454257]
[1743469105551,0.28677261,607.32,605.37,2.51454257]
[1743469105748,1.531,607.33,605.37,2.51454257]
[1743469105949,0.28686954,607.31,605.37,2.51454257]
[1743469106945,1.531,607.33,605.37,2.51454257]
[1743469107151,0.28686954,607.3,605.32,2.51454257]
[1743469108449,0.28686954,607.3,605.31,2.68701299]
[1743469108652,0.28686954,607.3,605.31,4.51882037]
[1743469108949,0.28686954,607.3,605.32,1.83180738]
[1743469109453,0.28686954,607.3,605.31,2.68701299]
[1743469109952,1.531,607.33,605.31,2.68701299]
[1743469110454,0.28687663,607.29,605.21,4.51882037]
[1743469110855,0.28687663,607.29,605.39,2.51454257]
[1743469112358,0.28687663,607.29,605.36,2.51454257]
[1743469114061,0.28687663,607.29,605.26,1.83180738]
[1743469114062,0.28687663,607.29,605.34,2.51454257]
[1743469115264,0.28687663,607.29,605.43,2.51454257]
[1743469115855,1.531,607.33,605.43,2.51454257]
[1743469116259,0.28686244,607.28,605.43,2.51454257]
[1743469116459,0.28686244,607.28,605.58,2.51454257]
[1743469117458,0.28686244,607.28,605.59,2.51454257]
[1743469118163,0.28686244,607.28,605.6,2.51454257]
[1743469119060,1.531,607.33,605.6,2.51454257]
[1743469119564,0.28684234,607.27,605.44,2.51454257]
[1743469121467,0.28684234,607.27,605.47,2.51454257]
[1743469121865,1.531,607.33,605.47,2.51454257]
[1743469122166,0.28686717,607.26,605.47,2.51454257]
[1743469124260,0.28686717,607.26,605.43,1.83180738]
[1743469124665,0.28686717,607.26,605.42,2.68701299]
[1743469124863,0.28686717,607.26,605.36,4.51882037]
[1743469126064,0.28686717,607.26,605.38,2.51454257]
[1743469127063,0.28686717,607.26,605.39,2.51454257]
[1743469127863,0.28686717,607.26,605.39,4.34634995]
[1743469128167,1.531,607.33,605.4,2.68701299]
[1743469128368,0.28687663,607.25,605.4,4.51882037]
[1743469128567,1.531,607.33,605.4,4.51882037]
[1743469128965,0.28687545,607.24,605.4,4.51882037]
[1743469129165,1.531,607.33,605.41,2.51454257]
[1743469129468,0.28687545,607.23,605.41,7.03336294]
[1743469129770,1.531,607.33,605.42,1.83180738]
[1743469130062,0.28687427,607.22,605.44,0.33033826]
[1743469130263,0.28687427,607.22,605.73,2.51454257]
[1743469130464,1.531,607.33,605.75,0.33016921]
[1743469130663,0.28688491,607.21,605.75,0.33016921]
[1743469131061,1.531,607.33,605.75,0.33016921]
[1743469131266,0.28684825,607.2,605.75,0.33016921]
[1743469131667,1.531,607.33,605.75,0.33016921]
[1743469131868,0.28684825,607.19,605.75,0.33016921]
[1743469132270,1.531,607.33,605.75,0.33016921]
[1743469132463,0.28684825,607.18,605.75,0.33016921]
[1743469132862,1.531,607.33,605.75,0.33016921]
[1743469133069,0.28686835,607.17,605.75,0.33016921]
[1743469133370,1.531,607.33,605.75,0.33016921]
[1743469133567,0.28687781,607.16,605.75,0.33016921]
[1743469133967,1.531,607.33,605.75,0.33016921]
[1743469134272,0.28687781,607.15,605.75,0.33016921]
[1743469134671,1.531,607.33,605.75,0.33016921]
[1743469134870,0.28687781,607.14,605.75,0.33016921]
[1743469135174,1.531,607.33,605.75,0.33016921]
[1743469135472,0.286879,607.13,605.75,0.33016921]
[1743469135673,1.531,607.33,605.75,0.33016921]
[1743469136068,0.28686717,607.12,605.75,0.33016921]
[1743469136267,1.531,607.33,605.75,0.33016921]
[1743469136573,0.28686717,607.11,605.75,0.33016921]
[1743469136973,1.531,607.33,605.75,0.33016921]
[1743469137474,0.28686717,607.1,605.75,0.33016921]
[1743469137775,1.531,607.33,605.75,0.33016921]
[1743469138276,0.28686599,607.32,605.75,0.33016921]
[1743469139973,2.52329891,608.0,605.75,0.33016921]
[1743469140173,0.32895818,607.98,605.75,0.33016921]
[1743469140374,0.30277109,607.97,605.75,0.33016921]
[1743469140576,0.32897442,607.95,605.75,0.33016921]
[1743469140877,0.30277109,607.94,605.75,0.33016921]
[1743469141078,0.32899065,607.92,605.75,0.33016921]
[1743469141278,0.30277109,607.91,605.75,0.33016921]
[1743469141480,0.32900689,607.89,605.75,0.33016921]
[1743469141681,0.30277109,607.88,605.75,0.33016921]
[1743469141980,0.32901771,607.87,605.75,0.33016921]